Cogmind - Beta 10.1 @@@ ROGUE MODE // 2020.09.29 @ 19:27:24 Player: Plexion Result: Destroyed by G-34 Mercenary with Small Laser Performance ------------- Evolutions (0) 0 Regions Visited (2) 400 Robots Destroyed (3) 15 Value Destroyed (134) 134 Prototype IDs (0) 0 Alien Tech Used (0) 0 Bonus (0) 0 TOTAL SCORE: 549 Bonus ------- None Cogmind --------- Core Integrity 0/250 Matter 300/300 Energy 100/100 System Corruption 0% Temperature Cool (6) Movement Core (150) Ox2 Location -10/Mines Parts ------- > --- POWER (1) -------- (None) > --- PROPULSION (2) --- (None) > --- UTILITY (2) ------ Small Storage Unit > --- WEAPON (2) ------- Makeshift Axe > --- INVENTORY (6) ---- Light Ion Engine Proton Bomb Trap Proton Bomb Trap Proton Bomb Trap Proton Bomb Trap Proton Bomb Trap Peak State ------------ > --- POWER ------------ (None) > --- PROPULSION ------- Aluminum Leg Aluminum Leg > --- UTILITY ---------- Small Storage Unit > --- WEAPON ----------- Makeshift Axe > --- INVENTORY -------- Light Ion Engine Proton Bomb Trap Proton Bomb Trap Proton Bomb Trap Proton Bomb Trap Proton Bomb Trap [Rating: 8] Favorites ----------- Power Light Ion Engine Engine Light Ion Engine Propulsion Wheel Leg Aluminum Leg Wheel Wheel Utility Small Storage Unit Storage Small Storage Unit Weapon Assault Rifle Energy Gun Medium Laser Ballistic Gun Assault Rifle Launcher Grenade Launcher Slashing Weapon Makeshift Axe Build | -11 -10 -10 ------- Run | Scr Mat Min Slots Evolved . | . . . Power . | . . . Propulsion . | . . . Utility . | . . . Weapon . | . . . Parts Attached 11 | 6 . 5 Power 1 | 1 . . Engine 1 | 1 . . Core . | . . . Reactor . | . . . Propulsion 4 | 2 . 2 Treads . | . . . Leg 2 | . . 2 Wheel 2 | 2 . . Hover . | . . . Flight . | . . . Utility 1 | 1 . . Device . | . . . Storage 1 | 1 . . Processor . | . . . Hackware . | . . . Protection . | . . . Artifact . | . . . Weapon 5 | 2 . 3 Energy Gun 1 | . . 1 Energy Cannon . | . . . Ballistic Gun 2 | 2 . . Ballistic Cannon . | . . . Launcher 1 | . . 1 Special Weapon . | . . . Impact Weapon . | . . . Slashing Weapon 1 | . . 1 Piercing Weapon . | . . . Special Melee Weapon . | . . . Unidentified Prototypes . | . . . Parts Lost 9 | . . 9 Power 1 | . . 1 Propulsion 4 | . . 4 Utility . | . . . Weapon 4 | . . 4 Highest Loss Streak 6 | . . 6 Average Slot Usage (%) 58 | . 85 51 Engine 5 | . 14 4 Leg 2 | . . 3 Wheel 11 | . 28 8 Storage 14 | . 14 14 Ballistic Gun 11 | . 28 8 Launcher 6 | . . 7 Slashing Weapon 5 | . . 6 Naked Turns . | . . . Heaviest Build 11 | 11 11 11 Greatest Support 26 | 26 26 26 Greatest Overweight (x) 3 | . . 3 Average Overweight (x) . | . . 1 Largest Inventory Capacity 6 | 6 6 6 Average Capacity 5 | 5 6 6 Most Carried 6 | 4 6 6 Average Carried 5 | 2 5 5 Final Capacity 6 | 6 6 6 Final Carried 6 | 4 6 6 Class Distribution -------------------- 100% | Mutant Dominant Class ---------------- Mutant | -10/Materials Mutant | -10/Mines Resources | -11 -10 -10 ----------- Run | Scr Mat Min Matter Collected 439 | 177 91 171 Remotely . | . . . Salvage Created 127 | . . 127 Parts 7 | . . 7 Haulers Intercepted . | . . . Recyclers Shooed . | . . . Parts Field Recycled . | . . . Retrieved Matter . | . . . Parts Self-Destructed . | . . . Prevented . | . . . Kills | -11 -10 -10 ------- Run | Scr Mat Min Combat Hostiles Destroyed 3 | . . 3 Melee 2 | . . 2 AOE 1 | . . 1 Classes Destroyed 2 | . . 2 Grunt 2 | . . 2 Demolisher 1 | . . 1 Best Kill Streak 1 | . . 1 Combat Bots Only 1 | . . 1 Max Kills in Single Turn 1 | . . 1 Gunslinging . | . . . Exploded 1 | . . 1 Melee 1 | . . 1 Uniques/NPCs Destroyed . | . . . Combat | -11 -10 -10 -------- Run | Scr Mat Min Damage Taken 988 | 1 . 987 Core 257 | . . 257 Absorbed by Shields . | . . . Core Remaining (%) 100 | 100 . . Volleys Fired 27 | . 2 25 Largest 2 | . 2 2 Hottest 70 | . 40 70 Shots Fired 45 | . 4 41 Gun 39 | . 4 35 Cannon . | . . . Launcher 6 | . . 6 Special . | . . . Kinetic 36 | . 4 32 Thermal 3 | . . 3 Explosive 6 | . . 6 Electromagnetic . | . . . Robot Hit Streak 8 | . 2 8 Robot Miss Streak 4 | . 1 4 Penetration Max . | . . . Secondary Targets . | . . . Shots Hit Robots 47 | . 3 44 Core Hits 16 | . . 16 Critical Hits . | . . . Critical Kills . | . . . Critical Parts Destroyed . | . . . Melee Attacks 24 | . . 24 Impact . | . . . Slashing 24 | . . 24 Piercing . | . . . Sneak Attacks 1 | . . 1 Combat Hostiles . | . . . Follow-up Attacks . | . . . Damage Inflicted 932 | 3 37 892 Guns 272 | . 37 235 Cannons . | . . . Explosions 64 | . . 64 Melee 593 | . . 593 Ramming 3 | 3 . . Kinetic 260 | . 37 223 Thermal 12 | . . 12 Explosive 64 | . . 64 Electromagnetic . | . . . Impact . | . . . Slashing 593 | . . 593 Piercing . | . . . Highest Corruption . | . . . Average Corruption . | . . . Corruption Purged . | . . . Overload Shots . | . . . Overflow Damage 101 | . . 101 Projectiles . | . . . Explosions . | . . . Melee 101 | . . 101 Knockbacks . | . . . Impact . | . . . Kinetic . | . . . Secondary . | . . . Self-Inflicted Damage 36 | 1 . 35 Shots 1 | . . 1 Rammed 1 | 1 . . Targets Rammed 1 | 1 . . Kicked . | . . . Crushed . | . . . Highest Temperature 6 | . . 6 Average Temperature 6 | . . 6 Received Heat Transfer 231 | . . 231 Siege Activations . | . . . Robots Corrupted . | . . . Combat Hostiles . | . . . Parts Fried . | . . . Impact Corruptions . | . . . Robots Melted . | . . . Combat Hostiles . | . . . Parts Melted . | . . . Heat Transferred 37 | . . 37 Parts Sabotaged . | . . . Parts Stolen . | . . . Parts Stripped . | . . . Power Chain Reactions . | . . . Missiles Intercepted . | . . . Alert | -11 -10 -10 ------- Run | Scr Mat Min Peak Influence 65 | . 15 65 Initial 5 | . . 5 Average 16 | . 6 20 Maximum Alert Level . | . . . Low Security (%) 100 | 100 100 100 Level 1 . | . . . Level 2 . | . . . Level 3 . | . . . Level 4 . | . . . Level 5 . | . . . High Security . | . . . Max Security . | . . . Squads Dispatched 2 | . 2 . Investigation . | . . . Extermination . | . . . Reinforcement 2 | . 2 . Assault . | . . . Garrison . | . . . Intercept . | . . . Construction Impeded . | . . . Haulers Reinforced . | . . . Stealth | -11 -10 -10 --------- Run | Scr Mat Min Distress Signals 2 | . 1 1 Communications Jammed . | . . . Distress Signals . | . . . Times Spotted 12 | . 3 9 Peak Tracking Total 3 | . 3 3 Tactical Retreats 1 | . . 1 Traps | -11 -10 -10 ------- Run | Scr Mat Min Traps Triggered . | . . . Indirectly . | . . . Trap Hack Attempts . | . . . Triggered . | . . . Disarmed . | . . . Reprogrammed . | . . . Reused . | . . . Traps Extracted . | . . . Installed . | . . . Triggered . | . . . Machines | -11 -10 -10 ---------- Run | Scr Mat Min Machines Disabled . | . . . Max in Single Turn . | . . . Machines Sabotaged . | . . . Garrisons Compromised . | . . . Overloaded Fab Kills . | . . . Fab Network Shutdowns . | . . . Hacking | -11 -10 -10 --------- Run | Scr Mat Min Machines Accessed . | . . . Terminals . | . . . Fabricators . | . . . Repair Stations . | . . . Recycling Units . | . . . Scanalyzers . | . . . Garrison Access . | . . . Total Hacks . | . . . Successful . | . . . Failed . | . . . Catastrophic . | . . . Database Lockouts . | . . . Manual . | . . . Terminals . | . . . Fabricators . | . . . Repair Stations . | . . . Recycling Units . | . . . Scanalyzers . | . . . Garrison Access . | . . . Terminal Hacks . | . . . Fabricator Hacks . | . . . Repair Station Hacks . | . . . Recycling Unit Hacks . | . . . Scanalyzer . | . . . Garrison Access Hacks . | . . . Unauthorized Hacks . | . . . Terminals . | . . . Fabricators . | . . . Repair Stations . | . . . Recycling Units . | . . . Scanalyzers . | . . . Garrison Access . | . . . Data Cores Recovered . | . . . Used . | . . . Hacking Detections . | . . . Full Trace Events . | . . . Feedback Events . | . . . Feedback Blocked . | . . . Robot Schematics Acquired . | . . . Robots Built . | . . . Matter . | . . . Time . | . . . Total Robot Build Rating . | . . . Part Schematics Acquired . | . . . Parts Built . | . . . Matter . | . . . Time . | . . . Total Part Build Rating . | . . . Parts Repaired . | . . . Time . | . . . Parts Recycled . | . . . Recycled Matter . | . . . Retrieved Matter . | . . . Retrieved Components . | . . . Parts Scanalyzed . | . . . Part Schematics Acquired . | . . . Parts Damaged . | . . . Bothacking | -11 -10 -10 ------------ Run | Scr Mat Min Used RIF Installer . | . . . Robots Hacked . | . . . Non-combat . | . . . Combat . | . . . Robot Hacks Applied . | . . . Relay Couplers Released . | . . . Robots Rewired . | . . . Allies Hacked . | . . . Hacks Repelled . | . . . Allies | -11 -10 -10 -------- Run | Scr Mat Min Total Allies . | . . . Largest Group . | . . . Highest-Rated Group . | . . . Highest-Rated Ally . | . . . Total Orders . | . . . Ally Attacks . | . . . Total Damage . | . . . Kills . | . . . Allies Corrupted . | . . . Allies Melted . | . . . Intel | -11 -10 -10 ------- Run | Scr Mat Min Robot Analysis Total . | . . . Derelict Logs Recovered 1 | . . 1 Drone Launches . | . . . Drone Recoveries . | . . . Exploration | -11 -10 -10 ------------- Run | Scr Mat Min Turns Passed 860 | 53 154 653 Spaces Moved 554 | 43 152 359 Core 168 | 1 . 167 Treads . | . . . Legs 51 | . . 51 Wheels 335 | 42 152 141 Hover . | . . . Flight . | . . . Fastest Speed 50 | 50 90 90 Average Speed 117 | 88 90 133 Slowest Speed 200 | 90 90 200 Overloaded Moves . | . . . Propulsion Burnouts . | . . . Robots Hopped . | . . . Cave-ins Triggered . | . . . Exploration Rate (%) 31 | 3 41 50 Regions Visited 2 Branch Regions 1 Pre-discovered Areas 1 | . . 1 Known Exits Taken . | . . . Unknown Exits Taken 2 | 1 1 . Scrap Searched 1 | . . 1 Spaces Dug . | . . . Terrain Destroyed 36 | . . 36 Melee . | . . . Projectile . | . . . AOE 36 | . . 36 Terrain Rammed . | . . . Walls Destroyed . | . . . Machines Disabled . | . . . Actions | -11 -10 -10 --------- Run | Scr Mat Min Total 691 | 55 166 470 Wait 56 | 2 7 47 Move 553 | 43 151 359 Hop . | . . . Pick Up 14 | 4 4 6 Fast Attach 9 | 6 . 3 Attach 2 | . . 2 Detach . | . . . Swap . | . . . Drop 6 | . 2 4 Fire 27 | . 2 25 Melee 24 | . . 24 Ram . | . . . Kick . | . . . Crush . | . . . Escape Stasis . | . . . Rewire . | . . . Trap . | . . . Miscellaneous . | . . . Route ------- -11/Scrapyard -10/Materials -10/Mines (discovered 1 exit: [*Exi]) History --------- Turn | Location | Event 6 | -11/Scrapyard | Discovered new exit (range 16) 54 | -11/Scrapyard | Entered Materials 184 | -10/Materials | Met 8R-AWN 186 | -10/Materials | Discovered new exit (range 9) 208 | -10/Materials | Entered Mines 209 | -10/Mines | Followed 8R-AWN into the Mines 234 | -10/Mines | Assembled infested the area 258 | -10/Mines | Discovered new exit (range 5) 316 | -10/Mines | Build established: Mutant 437 | -10/Mines | Lost 6 parts (1p2n3w) 461 | -10/Mines | Found a hidden stash of uninstalled traps 506 | -10/Mines | Core integrity fell below 50% 569 | -10/Mines | A weapon hastily lodged in a ceiling crevice suddenly fell to the ground 776 | -10/Mines | Received a Rocket Launcher from a helpful Derelict 820 | -10/Mines | Core integrity fell below 20% 861 | -10/Mines | Destroyed by G-34 Mercenary with Small Laser Last Messages --------------- 00774_ X4-IXX(g): "Need to get rid of a swarm? Done. Need a big hole in the wall? Done." 00775_ X4-IXX(g): "Need a small hole in the wall? Leave that to the mining laser wimps, I say!" 00776_ X4-IXX(g): "Would you like a rocket launcher? I know I would if I were you, so I'm going to lend you mine." 00776_ X4-IXX(g) slips back into the shadows. 00783_ Acquired 10 matter. 00786_ Acquired Aluminum Leg. 00810_ G-47 Trooper destroyed. 00812_ Acquired 10 matter. 00814_ G-34 Mercenary Ion Engine severed. 00823_ G-34 Mercenary Sml. Laser severed. 00825_ Searching scrap... 00825_ Found ECM Suite. 00825_ Found Signal Interpreter. 00825_ Found 33 Matter. 00825_ Found 11 Matter. 00855_ Aluminum Leg destroyed. 00858_ Destroyed Particle Gun. Map ----- +----------------------------------------------------+ | | | | | | | | | | | | | | | | | | | | | | | | | ??????????????????????????????????????????????? | | ??????????????????????????????????????????????? | | ??????????????????????????????????????????????? | | ????????????????????##????????????????????????? | | ???????????????????##T#######?????????????????? | | ???????????????????# #?????????????????? | | ???????????????????# #?????????????????? | | ???????????????????# #?????????????????? | | ??????????####?????# #?????????????????? | | ?????????## ##????#### ####?????????????????? | | ?????????# ###??####=[#????????????????????? | | ????????## #### !%=%#????????????????????? | | ???????## [!%#### #??????????????? | | ??????## % r u *!@ #??????????????? | | ????### !] ### gg #??????????????? | | ???## ##?### #####??????????????? | | ???# #####????## #?????????????????? | | ???# #?????????# #?????????????????? | | ???# #?????????# #?????????????????? | | ???## ##????????# #?????????????????? | | #???## ######???## ##?????????????????? | | #????# #????####??????????????????? | | #????## ##??????????????????????????? | | ##????## ## ##???????????????????????????? | | ############## ##????????????????????????????? | | ######### #?????????????????????????????? | | !#########?????????????????????? | | %[= ??????????????? | | ### ######## ##?????????????????????? | | % ##?# #???????????????????????????????? | | ######??# #???????????????????????????????? | | ####??????? ???????????????????????????????? | | #?????????? ""???????????????????????????????? | | #?????????" ""???????????????????????????????? | | ######????" ""???????????????????????????????? | | ### #???? ???????????????????????????????? | | ## #????? ""???????????????????????????????? | | # #?????" ?????????????????????????????????? | +----------------------------------------------------+ Best States ------------- Heat Dissipation 25 Energy Generation 10 Energy Capacity 125 Matter Stores 300 Matter Capacity 300 Sight Range 16 Terrain Scan Density 10 Evasion (%) 42 Item Schematics ----------------- None Robot Schematics ------------------ None Fabricated ------------ Nothing Alien Tech Used ----------------- None Achievements -------------- None Challenges ------------ None Game ------ Seed ShrapnelLobotomyHammer Manual? 0 Play Time 00:08:18 Cumulative 115.9 hours Start 2020.09.29 @ 19:22:26 End 2020.09.29 @ 19:27:24 Sessions 1 Manual Loads 0 Difficulty Rogue Special Mode None Game No. 146 Rogue 59 Adventurer 87 Explorer 0 Win Type - Total 4 Types 3/0/0/1/0/0/0/0/0 Lore% 52 Gallery% 64 Achievement% 55 Wizard Run 0 Options --------- ASCII 0 Keyboard 1 Movement Numpad Keybinds 0 Fullscreen 1 Font 18/Smallcaps Map View 76x50 Tactical HUD 1 Map Filters NONE Filters NONE Steam 1 RUN: b728ab1c-1566-4937-bb5f-17a3124e25ef